Workbook

Sheet ТИТУЛ
A1: Муниципальное автономное дошкольное образовательное учреждение
A2: детский сад комбинированного вида №24 "Березка" г. Белебея
A3: муниципального района Белебеевский район Республики Башкортостан
A10: Диагностика индивидуального развития детей 2-3 лет
C13: 20__-20___ учебный год
B15: В соответствии с Федеральной образовательной программой дошкольного образования
B16: Приказ Министерства просвещения РФ от 25.11.2022г.
A22: Педагоги:
A24: Воспитатель:
A25: Воспитатель:
A26: Музыкальный руководитель:
A42: Планируемые образовательные результаты к трем годам:
A44: у ребенка развита крупная моторика, он активно использует освоенные ранее движения, начинает осваивать бег, прыжки, повторяет за взрослым простые имитационные упражнения, понимает указания взрослого, выполняет движения по зрительному и звуковому ориентирам;
A46: ребенок стремится к общению со взрослыми, реагирует на их настроение;
A48: ребенок проявляет интерес к сверстникам; наблюдает за их действиями и подражает им; играет рядом.
A50: в игровых действиях ребенок отображает действия взрослых, их последовательность, взаимосвязь;
A52: ребенок эмоционально вовлечен в действия с игрушками и другими предметами, стремится проявлять настойчивость в достижении результата своих действий;
A54: ребенок владеет активной речью, включенной в общение; может обращаться с вопросами и просьбами; проявляет интерес к стихам, сказкам, повторяет отдельные слова и фразы за взрослым; рассматривает картинки, показывает и называет предметы, изображенные на них;
A56: ребенок понимает и выполняет простые поручения взрослого;
A58: ребенок активно действует с окружающими его предметами, знает названия, свойства и назначение многих предметов, находящихся в его повседневном обиходе: различает и называет основные цвета, формы предметов, ориентируется в основных пространственных и временных отношениях;
A60: ребенок использует специфические, культурно фиксированные предметные действия, знает назначение бытовых предметов (ложки, расчески, карандаша и пр.) и умеет пользоваться ими;
A62: ребенок владеет основными гигиеническими навыками, простейшими навыками самообслуживания (одевание, раздевание, самостоятельно ест и др.);
A64: ребенок стремится проявлять самостоятельность в бытовом и игровом поведении;
A66: ребенок с удовольствием слушает музыку, подпевает, выполняет простые танцевальные движения; ребенок эмоционально откликается на красоту природы и произведения искусства; осваивает основы изобразительной деятельности (лепка, рисование) и конструирования.

Sheet ОГЛАВЛЕНИЕ
C1: ОГЛАВЛЕНИЕ:
C2: Кликнув мышкой по соответствующему названию, вы автоматически перейдете в нужный раздел.
C3: Планируемые образовательные результаты в раннем возрасте (к трем годам)
B5: наименование вкладки | C5: ТИТУЛЬНЫЙ ЛИСТ
B6: Образовательная область "Социально-коммуникативное развитие"
B7: СК-1 | C7: СОЦИАЛЬНО-КОММУНИКАТИВНОЕ РАЗВИТИЕ
B9: Образовательная область "Познавательное развитие"
B10: ПР-1 | C10: НАПРАВЛЕНИЕ 1. СЕНСОРНЫЕ ЭТАЛОНЫ И ПОЗНАВАТЕЛЬНЫЕ ДЕЙСТВИЯ.
B11: ПР-2 | C11: НАПРАВЛЕНИЕ 2. МАТЕМАТИЧЕСКИЕ ПРЕДСТАВЛЕНИЯ
B12: ПР-3 | C12: НАПРАВЛЕНИЕ 3. ОКРУЖАЮЩИЙ МИР. ПРИРОДА
C13: Обобщение результатов педагогической диагностики по направлениям ОО "Познавательное развитие"
B14: Образовательная область "Речевое развитие"
B15: РР-1 | C15: НАПРАВЛЕНИЕ I. ФОРМИРОВАНИЕ СЛОВАРЯ
C16: НАПРАВЛЕНИЕ 2. ЗВУКОВАЯ КУЛЬТУРА РЕЧИ.
B17: РР-2 | C17: НАПРАВЛЕНИЕ 3. ГРАММАТИЧЕСКИЙ СТРОЙ РЕЧИ.
C18: НАПРАВЛЕНИЕ 4. СВЯЗНАЯ РЕЧЬ
B19: РР-3 | C19: НАПРАВЛЕНИЕ 5. ИНТЕРЕС К ХУДОЖЕСТВЕННОЙ ЛИТЕРАТУРЕ
B20: ИТОГ РР | C20: Обобщение результатов педагогической диагностики по направлениям ОО "Речевое развитие"
B21: Образовательная область "Художественно-эстетическое развитие"
B22: ХЭ-1 | C22: НАПРАВЛЕНИЕ I. ПРИОБЩЕНИЕ К ИСКУССТВУ
C23: НАПРАВЛЕНИЕ 2. ИЗОБРАЗИТЕЛЬНАЯ ДЕЯТЕЛЬНОСТЬ
C24: НАПРАВЛЕНИЕ 3. КОНСТРУКТИВНАЯ ДЕЯТЕЛЬНОСТЬ
B25: ХЭ-2 | C25: НАПРАВЛЕНИЕ 4. МУЗЫКАЛЬНАЯ ДЕЯТЕЛЬНОСТЬ
B26: ХЭ-3 | C26: НАПРАВЛЕНИЕ 5. ТЕАТРАЛИЗОВАННАЯ И КУЛЬТУРНО-ДОСУГОВАЯ ДЕЯТЕЛЬНОСТЬ
B27: ИТОГ ХЭ | C27: Обобщение результатов педагогической диагностики по направлениям ОО "Художественно-эстетическое развитие"
B28: Образовательная область "Физическое развитие"
B29: ФР | C29: НАПРАВЛЕНИЕ I. ОСНОВНАЯ ГИМНАСТИКА. ПОДВИЖНЫЕ И СПОРТИВНЫЕ ИГРЫ. СПОРТИВНЫЕ УПРАЖНЕНИЯ
C30: НАПРАВЛЕНИЕ 2. ФОРМИРОВАНИЕ ОСНОВ ЗДОРОВОГО ОБРАЗА ЖИЗНИ.
B31: ИТОГ ФР | C31: Обобщение результатов педагогической диагностики по направлениям ОО «Физическое развитие»
B33: ОБЩИЙ ИТОГ | C33: Обобщение результатов педагогической диагностики по всем образовательным областям

Sheet СК-1
A1: Образовательная область «Социально-коммуникативное развитие»
A2: №п/п | B2: ОГЛАВЛЕНИЕ | C2: Стремится к общению со взрослыми, реагирует на их настроение | E2: Проявляетинтерес к сверстникам. Наблюдает за их действиями и подражаетим. Играет рядом. | G2: Старается выполнять элементарные правила поведения ("можно", "нельзя") | I2: Узнает членов своей семьи | K2: Понимает и выполняет простые поручения взрослого | M2: Стремится проявлять самостоятельность в бытовом и игровом поведении | O2: Наблюдает за трудовыми процессами воспитателя в уголке природы | Q2: Выполняет простейшие трудовые действия (с помощью педагогов) | S2: Использует в игре замещение недостающего предмета | U2: В самостоятельной игре сопровождает речью свои действия | W2: среднее значение
B3: ФИ ребенка
C4: н.г. | D4: к.г. | E4: н.г. | F4: к.г. | G4: н.г. | H4: к.г. | I4: н.г. | J4: к.г. | K4: н.г. | L4: к.г. | M4: н.г. | N4: к.г. | O4: н.г. | P4: к.г. | Q4: н.г. | R4: к.г. | S4: н.г. | T4: к.г. | U4: н.г. | V4: к.г. | W4: н.г. | X4: к.г.
A5: 1 | B5: Иванов | C5: 2 | D5: 3 | E5: 2 | F5: 3 | G5: 2 | H5: 3 | I5: 2 | J5: 3 | K5: 2 | L5: 3 | M5: 2 | N5: 3 | O5: 3 | P5: 4 | Q5: 2 | R5: 3 | S5: 2 | T5: 3 | U5: 2 | V5: 3 | W5: =(C5+E5+G5+I5+K5+M5+O5+Q5+S5+U5)/10 -> 2.10 | X5: =(D5+F5+H5+J5+L5+N5+P5+R5+T5+V5)/10 -> 3.10
A6: 2 | B6: Петров | W6: =(C6+E6+G6+I6+K6+M6+O6+Q6+S6+U6)/10 -> 0.00 | X6: =(D6+F6+H6+J6+L6+N6+P6+R6+T6+V6)/10 -> 0.00
A7: 3 | B7: Сидоров | W7: 0.00 | X7: 0.00
A8: 4 | W8: 0.00 | X8: 0.00
A9: 5 | W9: 0.00 | X9: 0.00
A10: 6 | W10: 0.00 | X10: 0.00
A11: 7 | W11: 0.00 | X11: 0.00
A12: 8 | W12: 0.00 | X12: 0.00
A13: 9 | W13: 0.00 | X13: 0.00
A14: 10 | W14: 0.00 | X14: 0.00
A15: 11 | W15: 0.00 | X15: 0.00
A16: 12 | W16: 0.00 | X16: 0.00
A17: 13 | W17: 0.00 | X17: 0.00
A18: 14 | W18: 0.00 | X18: 0.00
A19: 15 | W19: 0.00 | X19: 0.00
A20: 16 | W20: 0.00 | X20: 0.00
A21: 17 | W21: 0.00 | X21: 0.00
A22: 18 | W22: 0.00 | X22: 0.00
A23: 19 | W23: 0.00 | X23: 0.00
A24: 20 | W24: 0.00 | X24: 0.00
A25: 21 | W25: 0.00 | X25: 0.00
A26: 22 | W26: 0.00 | X26: 0.00
A27: 23 | W27: 0.00 | X27: 0.00
A28: 24 | W28: 0.00 | X28: 0.00
B29: среднее значение: | C29: =(C5+C6+C7+C8+C9+C10+C11+C12+C13+C14+C15+C16+C17+C18+C19+C20+C21+C22+C23+C24+C25+C26+C27+C28)/COUNTA($B$5:$B$28) -> 0.67 | D29: =(D5+D6+D7+D8+D9+D10+D11+D12+D13+D14+D15+D16+D17+D18+D19+D20+D21+D22+D23+D24+D25+D26+D27+D28)/COUNTA($B$5:$B$28) -> 1.00 | E29: 0.67 | F29: 1.00 | G29: 0.67 | H29: 1.00 | I29: 0.67 | J29: 1.00 | K29: 0.67 | L29: 1.00 | M29: 0.67 | N29: 1.00 | O29: 1.00 | P29: 1.33 | Q29: 0.67 | R29: 1.00 | S29: =(S5+S6+S7+S8+S9+S10+S11+S12+S13+S14+S15+S16+S17+S18+S19+S20+S21+S22+S23+S24+S25+S26+S27+S28)/COUNTA($B$5:$B$28) -> 0.67 | T29: 1.00 | U29: 0.67 | V29: 1.00 | W29: 0.70 | X29: 1.03
B30: начало года | G30: начало года
C31: всего | D31: норма | E31: ниже нормы | F31: низкий
B33: количество детей | C33: =COUNTA($B$5:$B$28) -> 3 | D33: =COUNTIF(W5:W28,">=3,8") -> 0 | E33: =COUNTIFS(W5:W28,"<3,7",W5:W28,">=2,3") -> 0 | F33: =COUNTIFS(W5:W28,"<2,2",W5:W28,">0") -> 1 | G33: кол-во детей
B34: % | C34: 100 | D34: =D33*C34/C33 -> 0 | E34: =E33*C34/C33 -> 0.0 | F34: =F33*C34/C33 -> 33.3 | G34: %
B36: конец года | G36: конец года
C37: всего | D37: норма | E37: ниже нормы | F37: низкий
B39: количество детей | C39: =COUNTA($B$5:$B$28) -> 3 | D39: =COUNTIF(X5:X28,">=3,8") -> 0 | E39: =COUNTIFS(X5:X28,"<3,7",X5:X28,">=2,3") -> 1 | F39: =COUNTIFS(X5:X28,"<2,2",X5:X28,">0") -> 0 | G39: кол-во детей
B40: % | C40: 100 | D40: =D39*C40/C39 -> 0.0 | E40: =E39*C40/C39 -> 33.3 | F40: =F39*C40/C39 -> 0.0 | G40: %
B52: ВЫВОДЫ:
B53: Начало учебного года:
B62: Конец учебного года:

Sheet ПР-1
A1: Образовательная область «Познавательное развитие»
A2: НАПРАВЛЕНИЕ 1. СЕНСОРНЫЕ ЭТАЛОНЫ И ПОЗНАВАТЕЛЬНЫЕ ДЕЙСТВИЯ. | M2: ОГЛАВЛЕНИЕ
A3: №п/п | B3: ФИ ребенка | C3: Различает красный, синий, зеленый, желтый, белый, черный цвета | E3: Может образовывать группу по заданному образцу (по цвету, форме, величине) | G3: Разбирает и собирает | K3: Владеет обобщенными способами обследования формы предметов (ощупывание, рассматривание, сравнение, сопоставление) | M3: среднее значение
G4: цветные пирамидки из 4-5 колец | I4: трехместную матрешку с совмещением рисунка на ее частях
C5: н.г. | D5: к.г. | E5: н.г. | F5: к.г. | G5: н.г. | H5: к.г. | I5: н.г. | J5: к.г. | K5: н.г. | L5: к.г. | M5: н.г. | N5: к.г.
A6: 1 | B6: Иванов | C6: 3 | D6: 4 | E6: 2 | F6: 3 | G6: 2 | H6: 3 | I6: 4 | J6: 5 | K6: 3 | L6: 4 | M6: =(C6+E6+G6+I6+K6)/5 -> 2.80 | N6: =(D6+F6+H6+J6+L6)/5 -> 3.80
A7: 2 | B7: Петров | M7: =(C7+E7+G7+I7+K7)/5 -> 0.00 | N7: =(D7+F7+H7+J7+L7)/5 -> 0.00
A8: 3 | B8: Сидоров | M8: 0.00 | N8: 0.00
A9: 4 | M9: 0.00 | N9: 0.00
A10: 5 | M10: 0.00 | N10: 0.00
A11: 6 | M11: 0.00 | N11: 0.00
A12: 7 | M12: 0.00 | N12: 0.00
A13: 8 | M13: 0.00 | N13: 0.00
A14: 9 | M14: 0.00 | N14: 0.00
A15: 10 | M15: 0.00 | N15: 0.00
A16: 11 | M16: 0.00 | N16: 0.00
A17: 12 | M17: 0.00 | N17: 0.00
A18: 13 | M18: 0.00 | N18: 0.00
A19: 14 | M19: 0.00 | N19: 0.00
A20: 15 | M20: 0.00 | N20: 0.00
A21: 16 | M21: 0.00 | N21: 0.00
A22: 17 | M22: 0.00 | N22: 0.00
A23: 18 | M23: 0.00 | N23: 0.00
A24: 19 | M24: 0.00 | N24: 0.00
A25: 20 | M25: 0.00 | N25: 0.00
A26: 21 | M26: 0.00 | N26: 0.00
A27: 22 | M27: 0.00 | N27: 0.00
A28: 23 | M28: 0.00 | N28: 0.00
A29: 24 | M29: 0.00 | N29: 0.00
B30: среднее значение: | C30: =(C6+C7+C8+C9+C10+C11+C12+C13+C14+C15+C16+C17+C18+C19+C20+C21+C22+C23+C24+C25+C26+C27+C28+C29)/COUNTA($B$6:$B$29) -> 1.00 | D30: 1.33 | E30: =(E6+E7+E8+E9+E10+E11+E12+E13+E14+E15+E16+E17+E18+E19+E20+E21+E22+E23+E24+E25+E26+E27+E28+E29)/COUNTA($B$6:$B$29) -> 0.67 | F30: =(F6+F7+F8+F9+F10+F11+F12+F13+F14+F15+F16+F17+F18+F19+F20+F21+F22+F23+F24+F25+F26+F27+F28+F29)/COUNTA($B$6:$B$29) -> 1.00 | G30: 0.67 | H30: 1.00 | I30: 1.33 | J30: 1.67 | K30: 1.00 | L30: 1.33 | M30: 0.93 | N30: 1.27
B32: начало года
C33: всего | D33: норма | E33: ниже нормы | F33: низкий
B34: количество детей | C34: =COUNTA($B$6:$B$29) -> 3 | D34: =COUNTIF(M6:M29,">=3,8") -> 0 | E34: =COUNTIFS(M6:M29,"<3,7",M6:M29,">=2,3") -> 1 | F34: =COUNTIFS(M6:M29,"<2,2",M6:M29,">0") -> 0
B35: % | C35: 100 | D35: =D34*C35/C34 -> 0 | E35: =E34*C35/C34 -> 33.3 | F35: =F34*C35/C34 -> 0.0
B37: конец года
C38: всего | D38: норма | E38: ниже нормы | F38: низкий
B39: количество детей | C39: =COUNTA(B6:B29) -> 3 | D39: =COUNTIF(N6:N29,">=3,8") -> 1 | E39: =COUNTIFS(N6:N29,"<3,7",N6:N29,">=2,3") -> 0 | F39: =COUNTIFS(N6:N29,"<2,2",N6:N29,">0") -> 0
B40: % | C40: 100 | D40: =D39*C40/C39 -> 33.3 | E40: =E39*C40/C39 -> 0.0 | F40: =F39*C40/C39 -> 0.0

Sheet ПР-2
A1: НАПРАВЛЕНИЕ 2. МАТЕМАТИЧЕСКИЕ ПРЕДСТАВЛЕНИЯ. | K1: ОГЛАВЛЕНИЕ
A3: №п/п | B3: ФИ ребенка | C3: Различает форму окружающих предметов | E3: Различает | K3: Проявляет интерес к колличественной группировке предметов (много и много, много и мало, много и один) | M3: среднее значение
E4: большие и маленькие предметы, называет их размер | G4: длинные и короткие предметы | I4: высокий и низкий
C5: н.г. | D5: к.г. | E5: н.г. | F5: к.г. | G5: н.г. | H5: к.г. | I5: н.г. | J5: к.г. | K5: н.г. | L5: к.г. | M5: н.г. | N5: к.г.
A6: 1 | B6: Иванов | C6: 2 | D6: 3 | E6: 2 | F6: 3 | G6: 3 | H6: 4 | I6: 3 | J6: 4 | K6: 3 | L6: 4 | M6: =(C6+E6+G6+I6+K6)/5 -> 2.60 | N6: =(D6+F6+H6+J6+L6)/5 -> 3.60
A7: 2 | B7: Петров | C7: 3 | D7: 4 | E7: 3 | F7: 4 | G7: 2 | H7: 3 | I7: 2 | J7: 3 | K7: 4 | L7: 5 | M7: =(C7+E7+G7+I7+K7)/5 -> 2.80 | N7: =(D7+F7+H7+J7+L7)/5 -> 3.80
A8: 3 | B8: Сидоров | C8: 2 | D8: 3 | E8: 2 | F8: 3 | G8: 2 | H8: 3 | I8: 2 | J8: 3 | K8: 2 | L8: 3 | M8: 2.00 | N8: 3.00
A9: 4 | M9: 0.00 | N9: 0.00
A10: 5 | M10: 0.00 | N10: 0.00
A11: 6 | M11: 0.00 | N11: 0.00
A12: 7 | M12: 0.00 | N12: 0.00
A13: 8 | M13: 0.00 | N13: 0.00
A14: 9 | M14: 0.00 | N14: 0.00
A15: 10 | M15: 0.00 | N15: 0.00
A16: 11 | M16: 0.00 | N16: 0.00
A17: 12 | M17: 0.00 | N17: 0.00
A18: 13 | M18: 0.00 | N18: 0.00
A19: 14 | M19: 0.00 | N19: 0.00
A20: 15 | M20: 0.00 | N20: 0.00
A21: 16 | M21: 0.00 | N21: 0.00
A22: 17 | M22: 0.00 | N22: 0.00
A23: 18 | M23: 0.00 | N23: 0.00
A24: 19 | M24: 0.00 | N24: 0.00
A25: 20 | M25: 0.00 | N25: 0.00
A26: 21 | M26: 0.00 | N26: 0.00
A27: 22 | M27: 0.00 | N27: 0.00
A28: 23 | M28: 0.00 | N28: 0.00
A29: 24 | M29: 0.00 | N29: 0.00
B30: среднее значение: | C30: =(C6+C7+C8+C9+C10+C11+C12+C13+C14+C15+C16+C17+C18+C19+C20+C21+C22+C23+C24+C25+C26+C27+C28+C29)/COUNTA($B$6:$B$29) -> 2.33 | D30: =(D6+D7+D8+D9+D10+D11+D12+D13+D14+D15+D16+D17+D18+D19+D20+D21+D22+D23+D24+D25+D26+D27+D28+D29)/COUNTA($B$6:$B$29) -> 3.33 | E30: 2.33 | F30: 3.33 | G30: 2.33 | H30: 3.33 | I30: 2.33 | J30: 3.33 | K30: 3.00 | L30: 4.00 | M30: 2.47 | N30: 3.47
B32: начало года
C33: всего | D33: норма | E33: ниже нормы | F33: низкий
B34: количество детей | C34: =COUNTA($B$6:$B$29) -> 3 | D34: =COUNTIF(M6:M29,">=3,8") -> 0 | E34: =COUNTIFS(M6:M29,"<3,7",M6:M29,">=2,3") -> 2 | F34: =COUNTIFS(M6:M29,"<2,2",M6:M29,">0") -> 1
B35: % | C35: 100 | D35: =D34*C35/C34 -> 0.0 | E35: =E34*C35/C34 -> 66.7 | F35: =F34*C35/C34 -> 33.3
B37: конец года
C38: всего | D38: норма | E38: ниже нормы | F38: низкий
B39: количество детей | C39: =COUNTA(B6:B29) -> 3 | D39: =COUNTIF(N6:N29,">=3,8") -> 1 | E39: =COUNTIFS(N6:N29,"<3,7",N6:N29,">=2,3") -> 2 | F39: =COUNTIFS(N6:N29,"<2,2",N6:N29,">0") -> 0
B40: % | C40: 100 | D40: =D39*C40/C39 -> 33.3 | E40: =E39*C40/C39 -> 66.7 | F40: =F39*C40/C39 -> 0.0

Sheet ПР-3
A1: НАПРАВЛЕНИЕ 3. ОКРУЖАЮЩИЙ МИР. ПРИРОДА. | M1: ОГЛАВЛЕНИЕ
A3: №п/п | B3: ФИ ребенка | C3: Называет имена членов своей семьи и воспитателей | E3: Узнает и называет некоторых домашних и диких животных, их детенышей | G3: Различает и называет некоторые овощи и фрукты (1-2 вида) | I3: Различает некоторые деревья ближайшего окружения (1-2 вида) | K3: Имеет эле ментарные представления о природных сезон ных явлениях | M3: Проявляет бережное отношение к животным и растениям | O3: среднее значение
C5: н.г. | D5: к.г. | E5: н.г. | F5: к.г. | G5: н.г. | H5: к.г. | I5: н.г. | J5: к.г. | K5: н.г. | L5: к.г. | M5: н.г. | N5: к.г. | O5: н.г. | P5: к.г.
A6: 1 | B6: Иванов | C6: 2 | D6: 3 | E6: 2 | F6: 3 | G6: 4 | H6: 5 | I6: 3 | J6: 4 | K6: 3 | L6: 4 | M6: 3 | N6: 4 | O6: =(C6+E6+G6+I6+K6+M6)/6 -> 2.83 | P6: =(D6+F6+H6+J6+L6+N6)/6 -> 3.83
A7: 2 | B7: Петров | O7: =(C7+E7+G7+I7+K7+M7)/6 -> 0.00 | P7: =(D7+F7+H7+J7+L7+N7)/6 -> 0.00
A8: 3 | B8: Сидоров | O8: 0.00 | P8: 0.00
A9: 4 | O9: 0.00 | P9: 0.00
A10: 5 | O10: 0.00 | P10: 0.00
A11: 6 | O11: 0.00 | P11: 0.00
A12: 7 | O12: 0.00 | P12: 0.00
A13: 8 | O13: 0.00 | P13: 0.00
A14: 9 | O14: 0.00 | P14: 0.00
A15: 10 | O15: 0.00 | P15: 0.00
A16: 11 | O16: 0.00 | P16: 0.00
A17: 12 | O17: 0.00 | P17: 0.00
A18: 13 | O18: 0.00 | P18: 0.00
A19: 14 | O19: 0.00 | P19: 0.00
A20: 15 | O20: 0.00 | P20: 0.00
A21: 16 | O21: 0.00 | P21: 0.00
A22: 17 | O22: 0.00 | P22: 0.00
A23: 18 | O23: 0.00 | P23: 0.00
A24: 19 | O24: 0.00 | P24: 0.00
A25: 20 | O25: 0.00 | P25: 0.00
A26: 21 | O26: 0.00 | P26: 0.00
A27: 22 | O27: 0.00 | P27: 0.00
A28: 23 | O28: 0.00 | P28: 0.00
A29: 24 | O29: 0.00 | P29: 0.00
B30: среднее значение: | C30: =(C6+C7+C8+C9+C10+C11+C12+C13+C14+C15+C16+C17+C18+C19+C20+C21+C22+C23+C24+C25+C26+C27+C28+C29)/COUNTA($B$6:$B$29) -> 0.67 | D30: =(D6+D7+D8+D9+D10+D11+D12+D13+D14+D15+D16+D17+D18+D19+D20+D21+D22+D23+D24+D25+D26+D27+D28+D29)/COUNTA($B$6:$B$29) -> 1.00 | E30: 0.67 | F30: 1.00 | G30: 1.33 | H30: 1.67 | I30: 1.00 | J30: 1.33 | K30: 1.00 | L30: 1.33 | M30: 1.00 | N30: 1.33 | O30: 0.94 | P30: 1.28
B32: начало года
C33: всего | D33: норма | E33: ниже нормы | F33: низкий
B34: количество детей | C34: =COUNTA($B$6:$B$29) -> 3 | D34: =COUNTIF(O6:O29,">=3,8") -> 0 | E34: =COUNTIFS(O6:O29,"<3,7",O6:O29,">=2,3") -> 1 | F34: =COUNTIFS(O6:O29,"<2,2",O6:O29,">0") -> 0
B35: % | C35: 100 | D35: =D34*C35/C34 -> 0 | E35: =E34*C35/C34 -> 33.3 | F35: =F34*C35/C34 -> 0.0 | I35: ='ПР-1'!M30 -> 0.9 | J35: ='ПР-2'!M30 -> 2.5 | K35: =O30 -> 0.94 | N35: =(I35+J35+K35)/3 -> 1.45
I36: ='ПР-1'!N30 -> 1.27 | J36: ='ПР-2'!N30 -> 3.47 | K36: =P30 -> 1.28 | N36: =(I36+J36+K36)/3 -> 2.00
B37: конец года
C38: всего | D38: норма | E38: ниже нормы | F38: низкий
B39: количество детей | C39: =COUNTA(B6:B29) -> 3 | D39: =COUNTIF(P6:P29,">=3,8") -> 1 | E39: =COUNTIFS(P6:P29,"<3,7",P6:P29,">=2,3") -> 0 | F39: =COUNTIFS(P6:P29,"<2,2",P6:P29,">0") -> 0
B40: % | C40: 100 | D40: =D39*C40/C39 -> 33.3 | E40: =E39*C40/C39 -> 0.0 | F40: =F39*C40/C39 -> 0.0
A46: Обобщение результатов педагогической диагностики по направлениям ОО «Познавательное развитие»
B48: ОГЛАВЛЕНИЕ | C48: Сенсорные эталоны и познавательные действия | F48: Математические представления | I48: Окружающий мир. Природа | L48: Средний уровень развития
C49: 1 | F49: 2 | I49: 3 | L49: ср.ур.
B50: начало | C50: ='ПР-1'!M30 -> 0.93 | F50: ='ПР-2'!M30 -> 2.47 | I50: =O30 -> 0.94 | L50: =(C50+F50+I50)/3 -> 1.45
B51: конец | C51: ='ПР-1'!N30 -> 1.27 | F51: ='ПР-2'!N30 -> 3.47 | I51: =P30 -> 1.28 | L51: =(C51+F51+I51)/3 -> 2.00
A70: ВЫВОДЫ:
A71: Начало учебного года:
A79: Конец учебного года:

Sheet РР-1
B1: Образовательная область «Речевое развитие» | R1: ОГЛАВЛЕНИЕ
B2: НАПРАВЛЕНИЕ I. ФОРМИРОВАНИЕ СЛОВАРЯ | L2: НАПРАВЛЕНИЕ 2. ЗВУКОВАЯ КУЛЬТУРА РЕЧИ.
B3: №п/п | C3: ФИ ребенка | D3: По словесному указанию находит предметы по цвету, размеру, различает их метоположение | F3: Использует сущ-ые обозначающие названия транспортных средств, растения, фрукты, овощи, животные | H3: Называет имена близких людей, имена детей группы | J3: среднее значение | L3: Правильно произносит гласные звуки | N3: Пытается произнести все слова, которые необходимы для выражения его мысли | P3: Произносит звукоподражательные слова в разном темпе, с разной силой голоса | R3: среднее значение
D5: н.г. | E5: к.г. | F5: н.г. | G5: к.г. | H5: н.г. | I5: к.г. | J5: н.г. | K5: к.г. | L5: н.г. | M5: к.г. | N5: н.г. | O5: к.г. | P5: н.г. | Q5: к.г. | R5: н.г. | S5: к.г.
B6: 1 | C6: Иванов | D6: 2 | E6: 3 | F6: 2 | G6: 3 | H6: 4 | I6: 5 | J6: =(D6+F6+H6)/3 -> 3 | K6: =(E6+G6+I6)/3 -> 4 | L6: 3 | M6: 3 | N6: 3 | O6: 4 | P6: 3 | Q6: 4 | R6: =(L6+N6+P6)/3 -> 3.00 | S6: =(M6+O6+Q6)/3 -> 3.67
B7: 2 | C7: Петров | D7: 2 | E7: 3 | F7: 2 | G7: 3 | H7: 2 | I7: 3 | J7: =(D7+F7+H7)/3 -> 2 | K7: =(E7+G7+I7)/3 -> 3 | L7: 3 | M7: 4 | N7: 3 | O7: 4 | P7: 3 | Q7: 3 | R7: =(L7+N7+P7)/3 -> 3.00 | S7: =(M7+O7+Q7)/3 -> 3.67
B8: 3 | C8: Сидоров | D8: 3 | E8: 4 | F8: 3 | G8: 4 | H8: 4 | I8: 5 | J8: 3 | K8: 4 | L8: 2 | M8: 3 | N8: 2 | O8: 3 | P8: 2 | Q8: 3 | R8: 2.00 | S8: 3.00
B9: 4 | J9: 0 | K9: 0 | R9: 0.00 | S9: 0.00
B10: 5 | J10: 0 | K10: 0 | R10: 0.00 | S10: 0.00
B11: 6 | J11: 0 | K11: 0 | R11: 0.00 | S11: 0.00
B12: 7 | J12: 0 | K12: 0 | R12: 0.00 | S12: 0.00
B13: 8 | J13: 0 | K13: 0 | R13: 0.00 | S13: 0.00
B14: 9 | J14: 0 | K14: 0 | R14: 0.00 | S14: 0.00
B15: 10 | J15: 0 | K15: 0 | R15: 0.00 | S15: 0.00
B16: 11 | J16: 0 | K16: 0 | R16: 0.00 | S16: 0.00
B17: 12 | J17: 0 | K17: 0 | R17: 0.00 | S17: 0.00
B18: 13 | J18: 0 | K18: 0 | R18: 0.00 | S18: 0.00
B19: 14 | J19: 0 | K19: 0 | R19: 0.00 | S19: 0.00
B20: 15 | J20: 0 | K20: 0 | R20: 0.00 | S20: 0.00
B21: 16 | J21: 0 | K21: 0 | R21: 0.00 | S21: 0.00
B22: 17 | J22: 0 | K22: 0 | R22: 0.00 | S22: 0.00
B23: 18 | J23: 0 | K23: 0 | R23: 0.00 | S23: 0.00
B24: 19 | J24: 0 | K24: 0 | R24: 0.00 | S24: 0.00
B25: 20 | J25: 0 | K25: 0 | R25: 0.00 | S25: 0.00
B26: 21 | J26: 0 | K26: 0 | R26: 0.00 | S26: 0.00
B27: 22 | J27: 0 | K27: 0 | R27: 0.00 | S27: 0.00
B28: 23 | J28: 0 | K28: 0 | R28: 0.00 | S28: 0.00
B29: 24 | J29: 0 | K29: 0 | R29: 0.00 | S29: 0.00
C30: среднее значение: | D30: =(D6+D7+D8+D9+D10+D11+D12+D13+D14+D15+D16+D17+D18+D19+D20+D21+D22+D23+D24+D25+D26+D27+D28+D29)/COUNTA($C$6:$C$29) -> 2.33 | E30: =(E6+E7+E8+E9+E10+E11+E12+E13+E14+E15+E16+E17+E18+E19+E20+E21+E22+E23+E24+E25+E26+E27+E28+E29)/24 -> 0.42 | F30: =(F6+F7+F8+F9+F10+F11+F12+F13+F14+F15+F16+F17+F18+F19+F20+F21+F22+F23+F24+F25+F26+F27+F28+F29)/24 -> 0.29 | G30: =(G6+G7+G8+G9+G10+G11+G12+G13+G14+G15+G16+G17+G18+G19+G20+G21+G22+G23+G24+G25+G26+G27+G28+G29)/24 -> 0.42 | H30: 0.42 | I30: 0.54 | J30: 1 | K30: 0 | L30: 0.33 | M30: 0.42 | N30: 0.33 | O30: 0.46 | P30: 0.33 | Q30: 0.42 | R30: 0.33 | S30: 0.43
C32: начало года | L32: начало года
D33: всего | E33: норма | F33: ниже нормы | G33: низкий | O33: всего | P33: норма | Q33: ниже нормы | R33: низкий
C34: количество детей | D34: =COUNTA($C$6:$C$29) -> 3 | E34: =COUNTIF(R6:R29,">=3,8") -> 0 | F34: =COUNTIFS(R6:R29,"<3,7",R6:R29,">=2,3") -> 2 | G34: =COUNTIFS(R6:R29,"<2,2",R6:R29,">0") -> 1 | L34: количество детей | O34: =COUNTA($C$6:$C$29) -> 3 | P34: =COUNTIF(R6:R29,">=3,8") -> 0 | Q34: =COUNTIFS(R6:R29,"<3,7",R6:R29,">=2,3") -> 2 | R34: =COUNTIFS(R6:R29,"<2,2",R6:R29,">0") -> 1
C35: % | D35: 100 | E35: =E34*D35/D34 -> 0 | F35: =F34*D35/D34 -> 66.7 | G35: =G34*D35/D34 -> 33.3 | L35: % | O35: 100 | P35: =P34*O35/O34 -> 0 | Q35: =Q34*O35/O34 -> 66.7 | R35: =R34*O35/O34 -> 33.3
C37: конец года | L37: конец года
D38: всего | E38: норма | F38: ниже нормы | G38: низкий | O38: всего | P38: норма | Q38: ниже нормы | R38: низкий
C39: количество детей | D39: =COUNTA(C6:C29) -> 3 | E39: =COUNTIF(S6:S29,">=3,8") -> 0 | F39: =COUNTIFS(S6:S29,"<3,7",S6:S29,">=2,3") -> 3 | G39: =COUNTIFS(S6:S29,"<2,2",S6:S29,">0") -> 0 | L39: количество детей | O39: =COUNTA($C$6:$C$29) -> 3 | P39: =COUNTIF(S6:S29,">=3,8") -> 0 | Q39: =COUNTIFS(S6:S29,"<3,7",S6:S29,">=2,3") -> 3 | R39: =COUNTIFS(S6:S29,"<2,2",S6:S29,">0") -> 0
C40: % | D40: 100 | E40: =E39*D40/D39 -> 0.0 | F40: =F39*D40/D39 -> 100.0 | G40: =G39*D40/D39 -> 0.0 | L40: % | O40: 100 | P40: =P39*O40/O39 -> 0.0 | Q40: =Q39*O40/O39 -> 100.0 | R40: =R39*O40/O39 -> 0.0

Sheet РР-2
A1: НАПРАВЛЕНИЕ 3. ГРАММАТИЧЕСКИЙ СТРОЙ РЕЧИ. | I1: ОГЛАВЛЕНИЕ | M1: НАПРАВЛЕНИЕ 4. СВЯЗНАЯ РЕЧЬ
A3: №п/п | B3: ФИ ребенка | C3: Правильно использует в речи | I3: Выражает свои мысли посредством 3-х, 4-х словных предложений | K3: среднее значение | M3: Понимает речь педагога, отвечает на вопросы | O3: Рассказывает об окружающем в 2-4 предложениях | Q3: Сопровождает речью игровые и бытовые действия | S3: среднее значение
C4: окончание имен существительных | E4: уменьшительно-ласкательные суффиксы | G4: местоимения с глаголами
C5: н.г. | D5: к.г. | E5: н.г. | F5: к.г. | G5: н.г. | H5: к.г. | I5: н.г. | J5: к.г. | K5: н.г. | L5: к.г. | M5: н.г. | N5: к.г. | O5: н.г. | P5: к.г. | Q5: н.г. | R5: к.г. | S5: н.г. | T5: к.г.
A6: 1 | B6: Иванов | C6: 3 | D6: 4 | E6: 2 | F6: 3 | G6: 3 | H6: 4 | I6: 3 | J6: 4 | K6: =(A6+C6+E6+G6)/4 -> 2.25 | L6: =(D6+F6+H6+J6)/4 -> 3.75 | M6: 3 | N6: 4 | O6: 3 | P6: 4 | Q6: 4 | R6: 5 | S6: =(M6+O6+Q6)/3 -> 3.33 | T6: =(N6+P6+R6)/3 -> 4.33
A7: 2 | B7: Петров | K7: =(A7+C7+E7+G7)/4 -> 0.50 | L7: =(D7+F7+H7+J7)/4 -> 0.00 | S7: =(M7+O7+Q7)/3 -> 0.00 | T7: =(N7+P7+R7)/3 -> 0.00
A8: 3 | B8: Сидоров | K8: 0.75 | L8: 0.00 | S8: 0.00 | T8: 0.00
A9: 4 | K9: 1.00 | L9: 0.00 | S9: 0.00 | T9: 0.00
A10: 5 | K10: 1.25 | L10: 0.00 | S10: 0.00 | T10: 0.00
A11: 6 | K11: 1.50 | L11: 0.00 | S11: 0.00 | T11: 0.00
A12: 7 | K12: 1.75 | L12: 0.00 | S12: 0.00 | T12: 0.00
A13: 8 | K13: 2.00 | L13: 0.00 | S13: 0.00 | T13: 0.00
A14: 9 | K14: 2.25 | L14: 0.00 | S14: 0.00 | T14: 0.00
A15: 10 | K15: 2.50 | L15: 0.00 | S15: 0.00 | T15: 0.00
A16: 11 | K16: 2.75 | L16: 0.00 | S16: 0.00 | T16: 0.00
A17: 12 | K17: 3.00 | L17: 0.00 | S17: 0.00 | T17: 0.00
A18: 13 | K18: 3.25 | L18: 0.00 | S18: 0.00 | T18: 0.00
A19: 14 | K19: 3.50 | L19: 0.00 | S19: 0.00 | T19: 0.00
A20: 15 | K20: 3.75 | L20: 0.00 | S20: 0.00 | T20: 0.00
A21: 16 | K21: 4.00 | L21: 0.00 | S21: 0.00 | T21: 0.00
A22: 17 | K22: 4.25 | L22: 0.00 | S22: 0.00 | T22: 0.00
A23: 18 | K23: 4.50 | L23: 0.00 | S23: 0.00 | T23: 0.00
A24: 19 | K24: 4.75 | L24: 0.00 | S24: 0.00 | T24: 0.00
A25: 20 | K25: 5.00 | L25: 0.00 | S25: 0.00 | T25: 0.00
A26: 21 | K26: 5.25 | L26: 0.00 | S26: 0.00 | T26: 0.00
A27: 22 | K27: 5.50 | L27: 0.00 | S27: 0.00 | T27: 0.00
A28: 23 | K28: 5.75 | L28: 0.00 | S28: 0.00 | T28: 0.00
A29: 24 | K29: 6.00 | L29: 0.00 | S29: 0.00 | T29: 0.00
B30: среднее значение: | C30: =(C6+C7+C8+C9+C10+C11+C12+C13+C14+C15+C16+C17+C18+C19+C20+C21+C22+C23+C24+C25+C26+C27+C28+C29)/COUNTA($B$6:$B$29) -> 1.00 | D30: =(D6+D7+D8+D9+D10+D11+D12+D13+D14+D15+D16+D17+D18+D19+D20+D21+D22+D23+D24+D25+D26+D27+D28+D29)/COUNTA($B$6:$B$29) -> 1.33 | E30: 0.67 | F30: 1.00 | G30: 1.00 | H30: 1.33 | I30: 1.00 | J30: 1.33 | K30: =(A30+C30+E30+G30)/4 -> 0.67 | L30: =(D30+F30+H30+J30)/4 -> 1.25 | M30: 1.00 | N30: 1.33 | O30: 1.00 | P30: 1.33 | Q30: 1.33 | R30: 1.67 | S30: 1.11 | T30: 1.44
B32: начало года | M32: начало года
C33: всего | D33: норма | E33: ниже нормы | F33: низкий | O33: всего | P33: норма | Q33: ниже нормы | R33: низкий
B34: количество детей | C34: =COUNTA($B$6:$B$29) -> 3 | D34: =COUNTIF(M6:M29,">=3,8") -> 0 | E34: =COUNTIFS(M6:M29,"<3,7",M6:M29,">=2,3") -> 1 | F34: =COUNTIFS(M6:M29,"<2,2",M6:M29,">0") -> 0 | M34: количество детей | O34: =COUNTA($B$6:$B$29) -> 3 | P34: =COUNTIF(S6:S29,">=3,8") -> 0 | Q34: =COUNTIFS(S6:S29,"<3,7",S6:S29,">=2,3") -> 1 | R34: =COUNTIFS(S6:S29,"<2,2",S6:S29,">0") -> 0
B35: % | C35: 100 | D35: =D34*C35/C34 -> 0 | E35: =E34*C35/C34 -> 33.3 | F35: =F34*C35/C34 -> 0.0 | M35: % | O35: 100 | P35: =P34*O35/O34 -> 0 | Q35: =Q34*O35/O34 -> 33.3 | R35: =R34*O35/O34 -> 0.0
B37: конец года | M37: конец года
C38: всего | D38: норма | E38: ниже нормы | F38: низкий | O38: всего | P38: норма | Q38: ниже нормы | R38: низкий
B39: количество детей | C39: =COUNTA(B5:B28) -> 3 | D39: =COUNTIF(T6:T29,">=3,8") -> 1 | E39: =COUNTIFS(T6:T29,"<3,7",T6:T29,">=2,3") -> 0 | F39: =COUNTIFS(T6:T29,"<2,2",T6:T29,">0") -> 0 | M39: количество детей | O39: =COUNTA($B$6:$B$29) -> 3 | P39: =COUNTIF(T6:T29,">=3,8") -> 1 | Q39: =COUNTIFS(T6:T29,"<3,7",T6:T29,">=2,3") -> 0 | R39: =COUNTIFS(T6:T29,"<2,2",T6:T29,">0") -> 0
B40: % | C40: 100 | D40: =D39*C40/C39 -> 33.3 | E40: =E39*C40/C39 -> 0.0 | F40: =F39*C40/C39 -> 0.0 | M40: % | O40: 100 | P40: =P39*O40/O39 -> 33.3 | Q40: =Q39*O40/O39 -> 0.0 | R40: =R39*O40/O39 -> 0.0

Sheet РР-3
A1: НАПРАВЛЕНИЕ 5. ИНТЕРЕС К ХУДОЖЕСТВЕННОЙ ЛИТЕРАТУРЕ | K1: ОГЛАВЛЕНИЕ
A3: №п/п | B3: ФИ ребенка | C3: Воспринимает небольшие по объему потешки, сказки, рассказы с наглядным сопровождением и без него | E3: Договаривает и произносит четверостишья известных ему стихов, песенок; воспроизводит игровые действия, движения персонажей | G3: Произносит звукоподражание, связанные с содержание текста (мяу-мяу, тмк-так, баю-бай) | I3: Рассматривает книги и иллюстрации вместе с педагогом и самостоятельно | K3: среднее значение
C5: н.г. | D5: к.г. | E5: н.г. | F5: к.г. | G5: н.г. | H5: к.г. | I5: н.г. | J5: к.г. | K5: н.г. | L5: к.г.
A6: 1 | B6: Иванов | C6: 2 | D6: 3 | E6: 2 | F6: 3 | G6: 4 | H6: 5 | I6: 3 | J6: 4 | K6: =(C6+E6+G6+I6)/4 -> 2.75 | L6: =(D6+F6+H6+J6)/4 -> 3.75
A7: 2 | B7: Петров | C7: 3 | D7: 4 | E7: 2 | F7: 3 | G7: 3 | H7: 5 | I7: 3 | J7: 4 | K7: =(C7+E7+G7+I7)/4 -> 2.75 | L7: =(D7+F7+H7+J7)/4 -> 4.00
A8: 3 | B8: Сидоров | C8: 3 | D8: 4 | E8: 3 | F8: 4 | G8: 4 | H8: 5 | I8: 4 | J8: 5 | K8: 3.50 | L8: 4.50
A9: 4 | K9: 0.00 | L9: 0.00
A10: 5 | K10: 0.00 | L10: 0.00
A11: 6 | K11: 0.00 | L11: 0.00
A12: 7 | K12: 0.00 | L12: 0.00
A13: 8 | K13: 0.00 | L13: 0.00
A14: 9 | K14: 0.00 | L14: 0.00
A15: 10 | K15: 0.00 | L15: 0.00
A16: 11 | K16: 0.00 | L16: 0.00
A17: 12 | K17: 0.00 | L17: 0.00
A18: 13 | K18: 0.00 | L18: 0.00
A19: 14 | K19: 0.00 | L19: 0.00
A20: 15 | K20: 0.00 | L20: 0.00
A21: 16 | K21: 0.00 | L21: 0.00
A22: 17 | K22: 0.00 | L22: 0.00
A23: 18 | K23: 0.00 | L23: 0.00
A24: 19 | K24: 0.00 | L24: 0.00
A25: 20 | K25: 0.00 | L25: 0.00
A26: 21 | K26: 0.00 | L26: 0.00
A27: 22 | K27: 0.00 | L27: 0.00
A28: 23 | K28: 0.00 | L28: 0.00
A29: 24 | K29: 0.00 | L29: 0.00
B30: среднее значение: | C30: =(C6+C7+C8+C9+C10+C11+C12+C13+C14+C15+C16+C17+C18+C19+C20+C21+C22+C23+C24+C25+C26+C27+C28+C29)/COUNTA($B$6:$B$29) -> 2.67 | D30: 3.67 | E30: 2.33 | F30: 3.33 | G30: 3.67 | H30: 5.00 | I30: 3.33 | J30: 4.33 | K30: 3.00 | L30: 4.08
B32: начало года
C33: всего | D33: норма | E33: ниже нормы | F33: низкий
B34: количество детей | C34: =COUNTA($B$6:$B$29) -> 3 | D34: =COUNTIF(K6:K29,">=3,8") -> 0 | E34: =COUNTIFS(K6:K29,"<3,7",K6:K29,">=2,3") -> 3 | F34: =COUNTIFS(K6:K29,"<2,2",K6:K29,">0") -> 0
B35: % | C35: 100 | D35: =D34*C35/C34 -> 0 | E35: =E34*C35/C34 -> 100.0 | F35: =F34*C35/C34 -> 0.0
B37: конец года
C38: всего | D38: норма | E38: ниже нормы | F38: низкий
B39: количество детей | C39: =COUNTA(B5:B28) -> 3 | D39: =COUNTIF(L6:L29,">=3,8") -> 2 | E39: =COUNTIFS(L6:L29,"<3,7",L6:L29,">=2,3") -> 0 | F39: =COUNTIFS(L6:L29,"<2,2",L6:L29,">0") -> 0
B40: % | C40: 100 | D40: =D39*C40/C39 -> 66.7 | E40: =E39*C40/C39 -> 0.0 | F40: =F39*C40/C39 -> 0.0

Sheet ИТОГ РР
A1: Обобщение результатов педагогической диагностики по направлениям
B2: ОО «Речевое развитие»
A4: ОГЛАВЛЕНИЕ | B4: Формирование словаря | C4: Звуковая культура речи | D4: Грамматический строй речи | E4: Связная речь | F4: Интерес к художественной литературе | G4: Средний уровень речевого развития
B5: 1 | C5: 2 | D5: 3 | E5: 4 | F5: 5 | G5: ср.ур.
A6: начало | B6: ='РР-1'!J30 -> 1.01 | C6: ='РР-1'!R30 -> 0.33 | D6: ='РР-2'!K30 -> 0.67 | E6: ='РР-2'!S30 -> 1.11 | F6: ='РР-3'!K30 -> 3.00 | G6: =(B6+C6+D6+E6+F6)/5 -> 1.23
A7: конец | B7: ='РР-1'!K30 -> 0.46 | C7: ='РР-1'!S30 -> 0.43 | D7: ='РР-2'!L30 -> 1.25 | E7: ='РР-2'!T30 -> 1.44 | F7: ='РР-3'!L30 -> 4.08 | G7: =(B7+C7+D7+E7+F7)/5 -> 1.53
A28: ВЫВОДЫ:
A29: Начало учебного года:
A37: Конец учебного года:

Sheet ХЭ-1
A1: Образовательная область «Художественно-эстетическое развитие»
A2: НАПРАВЛЕНИЕ I. ПРИОБЩЕНИЕ К ИСКУССТВУ. | K2: НАПРАВЛЕНИЕ 2. ИЗОБРАЗИТЕЛЬНАЯ ДЕЯТЕЛЬНОСТЬ | V2: НАПРАВЛЕНИЕ 3. КОНСТРУКТИВНАЯ ДЕЯТЕЛЬНОСТЬ
A4: №п/п | B4: ОГЛАВЛЕНИЕ | C4: Проявляет эмоциональную отзывчивость на доступные пониманию детей произведения озобразительного искусства | E4: Обращает внимание на характер народных игрушек (веселая, забавная и т.д.) | G4: Проявляет интерес к природе и отражает в доступной изобразительной и муз-ой деятельности | I4: среднее значение | K4: Изобразительная деятельность | U4: среднее значение | W4: Конструктивная деятельность | AA4: среднее значение
B5: ФИ ребенка | K5: рисование | Q5: лепка | W5: сооружает элементарные постройки по образцу | Y5: сооружает постройки самостоятельно
K6: Знает, что карандашами, фломастерами, красками и кистью можно рисовать | M6: Различает цвета карандашей, фломастеров, правильно называет их | O6: Рисует разные линии, пересекая их, уподобляя предметам | Q6: раскатывает комочек глины круговыми движениями ладоней | S6: соединяет две вылепленные формы в один предмет
C7: н.г. | D7: к.г. | E7: н.г. | F7: к.г. | G7: н.г. | H7: к.г. | I7: н.г. | J7: к.г. | K7: н.г. | L7: к.г. | M7: н.г. | N7: к.г. | O7: н.г. | P7: к.г. | Q7: н.г. | R7: к.г. | S7: н.г. | T7: к.г. | U7: н.г. | V7: к.г. | W7: н.г. | X7: к.г. | Y7: н.г. | Z7: к.г. | AA7: н.г. | AB7: к.г.
A8: 1 | B8: Иванов | C8: 2 | D8: 3 | E8: 2 | F8: 3 | G8: 4 | H8: 5 | I8: =(C8+E8+G8)/3 -> 2.67 | J8: =(D8+F8+H8)/3 -> 3.67 | K8: 2 | L8: 3 | M8: 3 | N8: 4 | O8: 3 | P8: 4 | Q8: 3 | R8: 4 | S8: 2 | T8: 3 | U8: =(K8+M8+Q8+S8)/4 -> 2.50 | V8: =(L8+N8+R8+T8)/4 -> 3.50 | W8: 4 | X8: 5 | Y8: 4 | Z8: 5 | AA8: =(W8+Y8)/2 -> 4.00 | AB8: =(X8+Z8)/2 -> 5.00
A9: 2 | B9: Петров | C9: 4 | D9: 5 | E9: 4 | F9: 5 | G9: 4 | H9: 5 | I9: =(C9+E9+G9)/3 -> 4.00 | J9: =(D9+F9+H9)/3 -> 5.00 | U9: =(K9+M9+Q9+S9)/4 -> 0.00 | V9: =(L9+N9+R9+T9)/4 -> 0.00 | AA9: =(W9+Y9)/2 -> 0.00 | AB9: =(X9+Z9)/2 -> 0.00
A10: 3 | B10: Сидоров | C10: 3 | D10: 4 | E10: 3 | F10: 4 | G10: 4 | H10: 5 | I10: 3.33 | J10: 4.33 | U10: 0.00 | V10: 0.00 | AA10: 0.00 | AB10: 0.00
A11: 4 | I11: 0.00 | J11: 0.00 | U11: 0.00 | V11: 0.00 | AA11: 0.00 | AB11: 0.00
A12: 5 | I12: 0.00 | J12: 0.00 | U12: 0.00 | V12: 0.00 | AA12: 0.00 | AB12: 0.00
A13: 6 | I13: 0.00 | J13: 0.00 | U13: 0.00 | V13: 0.00 | AA13: 0.00 | AB13: 0.00
A14: 7 | I14: 0.00 | J14: 0.00 | U14: 0.00 | V14: 0.00 | AA14: 0.00 | AB14: 0.00
A15: 8 | I15: 0.00 | J15: 0.00 | U15: 0.00 | V15: 0.00 | AA15: 0.00 | AB15: 0.00
A16: 9 | I16: 0.00 | J16: 0.00 | U16: 0.00 | V16: 0.00 | AA16: 0.00 | AB16: 0.00
A17: 10 | I17: 0.00 | J17: 0.00 | U17: 0.00 | V17: 0.00 | AA17: 0.00 | AB17: 0.00
A18: 11 | I18: 0.00 | J18: 0.00 | U18: 0.00 | V18: 0.00 | AA18: 0.00 | AB18: 0.00
A19: 12 | I19: 0.00 | J19: 0.00 | U19: 0.00 | V19: 0.00 | AA19: 0.00 | AB19: 0.00
A20: 13 | I20: 0.00 | J20: 0.00 | U20: 0.00 | V20: 0.00 | AA20: 0.00 | AB20: 0.00
A21: 14 | I21: 0.00 | J21: 0.00 | U21: 0.00 | V21: 0.00 | AA21: 0.00 | AB21: 0.00
A22: 15 | I22: 0.00 | J22: 0.00 | U22: 0.00 | V22: 0.00 | AA22: 0.00 | AB22: 0.00
A23: 16 | I23: 0.00 | J23: 0.00 | U23: 0.00 | V23: 0.00 | AA23: 0.00 | AB23: 0.00
A24: 17 | I24: 0.00 | J24: 0.00 | U24: 0.00 | V24: 0.00 | AA24: 0.00 | AB24: 0.00
A25: 18 | I25: 0.00 | J25: 0.00 | U25: 0.00 | V25: 0.00 | AA25: 0.00 | AB25: 0.00
A26: 19 | I26: 0.00 | J26: 0.00 | U26: 0.00 | V26: 0.00 | AA26: 0.00 | AB26: 0.00
A27: 20 | I27: 0.00 | J27: 0.00 | U27: 0.00 | V27: 0.00 | AA27: 0.00 | AB27: 0.00
A28: 21 | I28: 0.00 | J28: 0.00 | U28: 0.00 | V28: 0.00 | AA28: 0.00 | AB28: 0.00
A29: 22 | I29: 0.00 | J29: 0.00 | U29: 0.00 | V29: 0.00 | AA29: 0.00 | AB29: 0.00
A30: 23 | I30: 0.00 | J30: 0.00 | U30: 0.00 | V30: 0.00 | AA30: 0.00 | AB30: 0.00
A31: 24 | I31: 0.00 | J31: 0.00 | U31: 0.00 | V31: 0.00 | AA31: 0.00 | AB31: 0.00
B32: среднее значение: | C32: =(C8+C9+C10+C11+C12+C13+C14+C15+C16+C17+C18+C19+C20+C21+C22+C23+C24+C25+C26+C27+C28+C29+C30+C31)/COUNTA($B$8:$B$31) -> 3.00 | D32: =(D8+D9+D10+D11+D12+D13+D14+D15+D16+D17+D18+D19+D20+D21+D22+D23+D24+D25+D26+D27+D28+D29+D30+D31)/COUNTA($B$8:$B$31) -> 4.00 | E32: 3.00 | F32: 4.00 | G32: 4.00 | H32: 5.00 | I32: 3.33 | J32: 4.33 | K32: =(K8+K9+K10+K11+K12+K13+K14+K15+K16+K17+K18+K19+K20+K21+K22+K23+K24+K25+K26+K27+K28+K29+K30+K31)/COUNTA($B$8:$B$31) -> 0.67 | L32: 1.00 | M32: 1.00 | N32: 1.33 | O32: 1.00 | P32: 1.33 | Q32: 1.00 | R32: 1.33 | S32: 0.67 | T32: 1.00 | U32: 0.83 | V32: 1.17 | W32: =(W8+W9+W10+W11+W12+W13+W14+W15+W16+W17+W18+W19+W20+W21+W22+W23+W24+W25+W26+W27+W28+W29+W30+W31)/COUNTA($B$8:$B$31) -> 1.33 | X32: =(X8+X9+X10+X11+X12+X13+X14+X15+X16+X17+X18+X19+X20+X21+X22+X23+X24+X25+X26+X27+X28+X29+X30+X31)/COUNTA($B$8:$B$31) -> 1.67 | Y32: =(Y8+Y9+Y10+Y11+Y12+Y13+Y14+Y15+Y16+Y17+Y18+Y19+Y20+Y21+Y22+Y23+Y24+Y25+Y26+Y27+Y28+Y29+Y30+Y31)/COUNTA($B$8:$B$31) -> 1.33 | Z32: =(Z8+Z9+Z10+Z11+Z12+Z13+Z14+Z15+Z16+Z17+Z18+Z19+Z20+Z21+Z22+Z23+Z24+Z25+Z26+Z27+Z28+Z29+Z30+Z31)/COUNTA($B$8:$B$31) -> 1.67 | AA32: 1.33 | AB32: 1.67
B33: начало года | K33: начало года | V33: начало года
C34: всего | D34: норма | E34: ниже нормы | F34: низкий | N34: всего | O34: норма | P34: ниже нормы | Q34: низкий | Y34: всего | Z34: норма | AA34: ниже нормы | AB34: низкий
B35: количество детей | C35: =COUNTA($B$8:$B$31) -> 3 | D35: =COUNTIF(I8:I31,">=3,8") -> 1 | E35: =COUNTIFS(I8:I31,"<3,7",I8:I31,">=2,3") -> 2 | F35: =COUNTIFS(I8:I31,"<2,2",I8:I31,">0") -> 0 | K35: количество детей | N35: =COUNTA($B$8:$B$31) -> 3 | O35: =COUNTIF(U8:U31,">=3,8") -> 0 | P35: =COUNTIFS(U8:U31,"<3,7",U8:U31,">=2,3") -> 1 | Q35: =COUNTIFS(U8:U31,"<2,2",U8:U31,">0") -> 0 | V35: количество детей | Y35: =COUNTA($B$8:$B$31) -> 3 | Z35: =COUNTIF(AA8:AA31,">=3,8") -> 1 | AA35: =COUNTIFS(AA8:AA31,"<3,7",AA8:AA31,">=2,3") -> 0 | AB35: =COUNTIFS(AA8:AA31,"<2,2",AA8:AA31,">0") -> 0
B36: % | C36: 100 | D36: =D35*C36/C35 -> 33.33 | E36: =E35*C36/C35 -> 66.67 | F36: =F35*C36/C35 -> 0.00 | K36: % | N36: 100 | O36: =O35*N36/N35 -> 0.00 | P36: =P35*N36/N35 -> 33.33 | Q36: =Q35*N36/N35 -> 0.00 | V36: % | Y36: 100 | Z36: =Z35*Y36/Y35 -> 33.33 | AA36: =AA35*Y36/Y35 -> 0.00 | AB36: =AB35*Y36/Y35 -> 0.00
B38: конец года | K38: конец года | V38: конец года
C39: всего | D39: норма | E39: ниже нормы | F39: низкий | N39: всего | O39: норма | P39: ниже нормы | Q39: низкий | Y39: всего | Z39: норма | AA39: ниже нормы | AB39: низкий
B40: количество детей | C40: =COUNTA($B$8:$B$31) -> 3 | D40: =COUNTIF(J8:J31,">=3,8") -> 2 | E40: =COUNTIFS(J8:J31,"<3,7",J8:J31,">=2,3") -> 1 | F40: =COUNTIFS(J8:J31,"<2,2",J8:J31,">0") -> 0 | K40: количество детей | N40: =COUNTA($B$8:$B$31) -> 3 | O40: =COUNTIF(V8:V31,">=3,8") -> 0 | P40: =COUNTIFS(V8:V31,"<3,7",V8:V31,">=2,3") -> 1 | Q40: =COUNTIFS(V8:V31,"<2,2",V8:V31,">0") -> 0 | V40: количество детей | Y40: =COUNTA($B$8:$B$31) -> 3 | Z40: =COUNTIF(AB8:AB31,">=3,8") -> 1 | AA40: =COUNTIFS(AB8:AB31,"<3,7",AB8:AB31,">=2,3") -> 0 | AB40: =COUNTIFS(AB8:AB31,"<2,2",AB8:AB31,">0") -> 0
B41: % | C41: 100 | D41: =D40*C41/C40 -> 66.67 | E41: =E40*C41/C40 -> 33.33 | F41: =F40*C41/C40 -> 0.00 | K41: % | N41: 100 | O41: =O40*N41/N40 -> 0.00 | P41: =P40*N41/N40 -> 33.33 | Q41: =Q40*N41/N40 -> 0.00 | V41: % | Y41: 100 | Z41: =Z40*Y41/Y40 -> 33.33 | AA41: =AA40*Y41/Y40 -> 0.00 | AB41: =AB40*Y41/Y40 -> 0.00

Sheet ХЭ-2
A1: НАПРАВЛЕНИЕ 4. МУЗЫКАЛЬНАЯ ДЕЯТЕЛЬНОСТЬ | S1: ОГЛАВЛЕНИЕ
A3: №п/п | B3: ФИ ребенка | C3: Слушание | G3: Пение | I3: Музыкально-ритмические движения | S3: среднее значение
C4: Узнает знакомые мелодии и различает высоту звуков (высокий - низкий) | E4: Внимательно слушает спокойные и бодрые песни, понимает о ком (о чем) поется | G4: Вместе с педагогом подпевает в песне музыкальные фразы | I4: Воспроизводит движения, показываемые взрослым (хлопает, топает ногой, полуприседает, совершает повороты кистей рук) | K4: Начинает движения с началом музыки и заканчивает с ее окончанием | M4: Передает образы (птичка летает, зайка прыгает, мишка идет) | O4: Выполняет плясовые движения по кругу, врассыпную | Q4: Меняет движения с изменением характера музыки или содержания песни
C5: н.г. | D5: к.г. | E5: н.г. | F5: к.г. | G5: н.г. | H5: к.г. | I5: н.г. | J5: к.г. | K5: н.г. | L5: к.г. | M5: н.г. | N5: к.г. | O5: н.г. | P5: к.г. | Q5: н.г. | R5: к.г. | S5: н.г. | T5: к.г.
A6: 1 | B6: Иванов | C6: 3 | D6: 4 | E6: 3 | F6: 4 | G6: 4 | H6: 5 | I6: 4 | J6: 5 | K6: 3 | L6: 4 | M6: 4 | N6: 5 | O6: 3 | P6: 4 | Q6: 4 | R6: 5 | S6: =(C6+E6+G6+I6+K6+M6+O6+Q6)/8 -> 3.50 | T6: =(D6+F6+H6+J6+L6+N6+P6+R6)/8 -> 4.50
A7: 2 | B7: Петров | C7: 2 | D7: 3 | E7: 2 | F7: 3 | G7: 2 | H7: 3 | I7: 2 | J7: 3 | K7: 1 | L7: 2 | M7: 1 | N7: 2 | O7: 2 | P7: 3 | Q7: 2 | R7: 3 | S7: =(C7+E7+G7+I7+K7+M7+O7+Q7)/8 -> 1.75 | T7: =(D7+F7+H7+J7+L7+N7+P7+R7)/8 -> 2.75
A8: 3 | B8: Сидоров | C8: 3 | D8: 4 | E8: 3 | F8: 4 | G8: 3 | H8: 4 | I8: 3 | J8: 4 | K8: 3 | L8: 4 | M8: 3 | N8: 4 | O8: 3 | P8: 4 | Q8: 3 | R8: 4 | S8: 3.00 | T8: 4.00
A9: 4 | S9: 0.00 | T9: 0.00
A10: 5 | S10: 0.00 | T10: 0.00
A11: 6 | S11: 0.00 | T11: 0.00
A12: 7 | S12: 0.00 | T12: 0.00
A13: 8 | S13: 0.00 | T13: 0.00
A14: 9 | S14: 0.00 | T14: 0.00
A15: 10 | S15: 0.00 | T15: 0.00
A16: 11 | S16: 0.00 | T16: 0.00
A17: 12 | S17: 0.00 | T17: 0.00
A18: 13 | S18: 0.00 | T18: 0.00
A19: 14 | S19: 0.00 | T19: 0.00
A20: 15 | S20: 0.00 | T20: 0.00
A21: 16 | S21: 0.00 | T21: 0.00
A22: 17 | S22: 0.00 | T22: 0.00
A23: 18 | S23: 0.00 | T23: 0.00
A24: 19 | S24: 0.00 | T24: 0.00
A25: 20 | S25: 0.00 | T25: 0.00
A26: 21 | S26: 0.00 | T26: 0.00
A27: 22 | S27: 0.00 | T27: 0.00
A28: 23 | S28: 0.00 | T28: 0.00
A29: 24 | S29: 0.00 | T29: 0.00
B30: среднее значение: | C30: =(C6+C7+C8+C9+C10+C11+C12+C13+C14+C15+C16+C17+C18+C19+C20+C21+C22+C23+C24+C25+C26+C27+C28+C29)/COUNTA($B$6:$B$29) -> 2.67 | D30: 3.67 | E30: 2.67 | F30: 3.67 | G30: 3.00 | H30: 4.00 | I30: 3.00 | J30: 4.00 | K30: 2.33 | L30: 3.33 | M30: 2.67 | N30: 3.67 | O30: 2.67 | P30: 3.67 | Q30: 3.00 | R30: 4.00 | S30: 2.75 | T30: 3.75
B32: начало года
C33: всего | D33: норма | E33: ниже нормы | F33: низкий
B34: количество детей | C34: =COUNTA($B$6:$B$29) -> 3 | D34: =COUNTIF(S6:S29,">=3,8") -> 0 | E34: =COUNTIFS(S6:S29,"<3,7",S6:S29,">=2,3") -> 2 | F34: =COUNTIFS(S6:S29,"<2,2",S6:S29,">0") -> 1
B35: % | C35: 100 | D35: =D34*C35/C34 -> 0.00 | E35: =E34*C35/C34 -> 66.67 | F35: =F34*C35/C34 -> 33.33
B37: конец года
C38: всего | D38: норма | E38: ниже нормы | F38: низкий
B39: количество детей | C39: =COUNTA($B$5:$B$28) -> 3 | D39: =COUNTIF(T6:T29,">=3,8") -> 2 | E39: =COUNTIFS(T6:T29,"<3,7",T6:T29,">=2,3") -> 1 | F39: =COUNTIFS(T6:T29,"<2,2",T6:T29,">0") -> 0
B40: % | C40: 100 | D40: =D39*C40/C39 -> 66.67 | E40: =E39*C40/C39 -> 33.33 | F40: =F39*C40/C39 -> 0.00

Sheet ХЭ-3
A1: НАПРАВЛЕНИЕ 5,6. ТЕАТРАЛИЗОВАННАЯ И КУЛЬТУРНО-ДОСУГОВАЯ ДЕЯТЕЛЬНОСТЬ
I2: ОГЛАВЛЕНИЕ
A3: №п/п | B3: ФИ ребенка | C3: Следит за действиями героев кукольного театра | E3: Имитирует характерные действия персонажей (птички летают, козленок скачет) | G3: Принимает посильное участие в играх с пением | I3: среднее значение
C4: н.г. | D4: к.г. | E4: н.г. | F4: к.г. | G4: н.г. | H4: к.г. | I4: н.г. | J4: к.г.
A5: 1 | B5: Иванов | C5: 4 | D5: 5 | E5: 4 | F5: 5 | G5: 5 | H5: 5 | I5: =(C5+E5+G5)/3 -> 4.33 | J5: =(D5+F5+H5)/3 -> 5.00
A6: 2 | B6: Петров | C6: 3 | D6: 4 | E6: 3 | F6: 4 | G6: 3 | H6: 4 | I6: =(C6+E6+G6)/3 -> 3.00 | J6: =(D6+F6+H6)/3 -> 4.00
A7: 3 | B7: Сидоров | C7: 3 | D7: 4 | E7: 2 | F7: 3 | G7: 2 | H7: 3 | I7: 2.33 | J7: 3.33
A8: 4 | I8: 0.00 | J8: 0.00
A9: 5 | I9: 0.00 | J9: 0.00
A10: 6 | I10: 0.00 | J10: 0.00
A11: 7 | I11: 0.00 | J11: 0.00
A12: 8 | I12: 0.00 | J12: 0.00
A13: 9 | I13: 0.00 | J13: 0.00
A14: 10 | I14: 0.00 | J14: 0.00
A15: 11 | I15: 0.00 | J15: 0.00
A16: 12 | I16: 0.00 | J16: 0.00
A17: 13 | I17: 0.00 | J17: 0.00
A18: 14 | I18: 0.00 | J18: 0.00
A19: 15 | I19: 0.00 | J19: 0.00
A20: 16 | I20: 0.00 | J20: 0.00
A21: 17 | I21: 0.00 | J21: 0.00
A22: 18 | I22: 0.00 | J22: 0.00
A23: 19 | I23: 0.00 | J23: 0.00
A24: 20 | I24: 0.00 | J24: 0.00
A25: 21 | I25: 0.00 | J25: 0.00
A26: 22 | I26: 0.00 | J26: 0.00
A27: 23 | I27: 0.00 | J27: 0.00
A28: 24 | I28: 0.00 | J28: 0.00
B29: среднее значение: | C29: =(C5+C6+C7+C8+C9+C10+C11+C12+C13+C14+C15+C16+C17+C18+C19+C20+C21+C22+C23+C24+C25+C26+C27+C28)/COUNTA($B$5:$B$28) -> 3.33 | D29: =(D5+D6+D7+D8+D9+D10+D11+D12+D13+D14+D15+D16+D17+D18+D19+D20+D21+D22+D23+D24+D25+D26+D27+D28)/COUNTA($B$5:$B$28) -> 4.33 | E29: 3.00 | F29: 4.00 | G29: 3.33 | H29: 4.00 | I29: 3.22 | J29: 4.11
B31: начало года
C32: всего | D32: норма | E32: ниже нормы | F32: низкий
B33: количество детей | C33: =COUNTA($B$5:$B$28) -> 3 | D33: =COUNTIF(I5:I28,">=3,8") -> 1 | E33: =COUNTIFS(I5:I28,"<3,7",I5:I28,">=2,3") -> 2 | F33: =COUNTIFS(I5:I28,"<2,2",I5:I28,">0") -> 0
B34: % | C34: 100 | D34: =D33*C34/C33 -> 33.33 | E34: =E33*C34/C33 -> 66.67 | F34: =F33*C34/C33 -> 0.00
B35: конец года
C36: всего | D36: норма | E36: ниже нормы | F36: низкий
B37: количество детей | C37: =COUNTA(B4:B27) -> 3 | D37: =COUNTIF(J5:J28,">=3,8") -> 2 | E37: =COUNTIFS(J5:J28,"<3,7",J5:J28,">=2,3") -> 1 | F37: =COUNTIFS(J5:J28,"<2,2",J5:J28,">0") -> 0
B38: % | C38: 100 | D38: =D37*C38/C37 -> 66.67 | E38: =E37*C38/C37 -> 33.33 | F38: =F37*C38/C37 -> 0.00

Sheet ИТОГ ХЭ
A1: Обобщение результатов педагогической диагностики по направлениям
A2: ОО «Художественно-эстетическое развитие»
A4: ОГЛАВЛЕНИЕ | B4: Приобщение к искусству | C4: Изобразительная деятельность | D4: Конструктивная деятельность | E4: Музыкальная деятельность | F4: Театрализованная и культурно-досуговая деятельность | G4: Средний балл/уровень
B5: 1 | C5: 2 | D5: 3 | E5: 4 | F5: 5 | G5: ср.ур.
A6: начало | B6: ='ХЭ-1'!I32 -> 3.33 | C6: ='ХЭ-1'!U32 -> 0.83 | D6: ='ХЭ-1'!AA32 -> 1.33 | E6: ='ХЭ-2'!S30 -> 2.75 | F6: ='ХЭ-3'!I29 -> 3.22 | G6: =(B6+C6+D6+E6+F6)/5 -> 2.29
A7: конец | B7: ='ХЭ-1'!J32 -> 4.33 | C7: ='ХЭ-1'!V32 -> 1.17 | D7: ='ХЭ-1'!AB32 -> 1.67 | E7: ='ХЭ-2'!T30 -> 3.75 | F7: ='ХЭ-3'!J29 -> 4.11 | G7: =(B7+C7+D7+E7+F7)/5 -> 3.01
A26: ВЫВОДЫ:
A27: Начало учебного года:
A35: Конец учебного года:

Sheet ФР
A1: Образовательная область «Физическое развитие»
A2: НАПРАВЛЕНИЕ I. ОСНОВНАЯ ГИМНАСТИКА. ПОДВИЖНЫЕ ИГРЫ. СПОРТИВНЫЕ УПРАЖНЕНИЯ | T2: НАПРАВЛЕНИЕ 2. ФОРМИРОВАНИЕ ОСНОВ ЗДОРОВОГО ОБРАЗА ЖИЗНИ.
A3: №п/п | B3: ОГЛАВЛЕНИЕ | C3: Прокатывает мяч педагогу, друг другу двумя руками стоя и сидя | E3: бросает мяч от груди двумя руками, снизу, из-за головы. Ловит мяч, брошенный педагогом с расстояния 1м | G3: Ходит врассыпную и в заданном направлении, между предметами, по кругу по одному и парами, взявшись за руки | I3: Бегает стайкой за педагогом, в заданном и в разных направлениях | K3: прыжки на двух ногах на месте, с продвижением врепед, в длину с места | M3: Перешагивает через предметы (высота 10-15см), поднимается без помощи рук на скамейку | O3: По образцу педагога соместно выполняет ОРУ | Q3: Играет в подвижные игры с простым содержанием, с текстом, с вкючением музыкально-ритмических упр-ий | S3: среднее значение | U3: Самостоятельно и правильно моет руки перед едой, после прогулки и посещения туалета, чистит зубы, пользуется предметами личной гигиены | W3: Умеет оценивать свой внешний вид, приводит в порядок одежду | Y3: Проявляет эмоциональную отзывчивость на выполнение физических упражнений | AA3: среднее значение
B4: ФИ ребенка
C5: н.г. | D5: к.г. | E5: н.г. | F5: к.г. | G5: н.г. | H5: к.г. | I5: н.г. | J5: к.г. | K5: н.г. | L5: к.г. | M5: н.г. | N5: к.г. | O5: н.г. | P5: к.г. | Q5: н.г. | R5: к.г. | S5: н.г. | T5: к.г. | U5: н.г. | V5: к.г. | W5: н.г. | X5: к.г. | Y5: н.г. | Z5: к.г. | AA5: н.г. | AB5: к.г.
A6: 1 | B6: Иванов | C6: 2 | D6: 3 | E6: 2 | F6: 3 | G6: 2 | H6: 3 | I6: 2 | J6: 3 | K6: 3 | L6: 4 | M6: 3 | N6: 4 | O6: 2 | P6: 4 | Q6: 3 | R6: 5 | S6: =(C6+E6+G6+I6+K6+M6+O6+Q6)/8 -> 2.4 | T6: =(D6+F6+H6+J6+L6+N6+P6+R6)/8 -> 3.6 | U6: 3 | V6: 4 | W6: 3 | X6: 4 | Y6: 3 | Z6: 4 | AA6: =(U6+W6+Y6)/3 -> 3.0 | AB6: =(V6+X6+Z6)/3 -> 4.0
A7: 2 | B7: Петров | C7: 3 | D7: 4 | E7: 2 | F7: 3 | G7: 2 | H7: 3 | I7: 2 | J7: 3 | K7: 2 | L7: 3 | M7: 2 | N7: 3 | O7: 2 | P7: 3 | Q7: 2 | R7: 3 | S7: =(C7+E7+G7+I7+K7+M7+O7+Q7)/8 -> 2.1 | T7: =(D7+F7+H7+J7+L7+N7+P7+R7)/8 -> 3.1 | U7: 2 | V7: 3 | W7: 2 | X7: 3 | Y7: 2 | Z7: 3 | AA7: =(U7+W7+Y7)/3 -> 2.0 | AB7: =(V7+X7+Z7)/3 -> 3.0
A8: 3 | B8: Сидоров | S8: 0.0 | T8: 0.0 | AA8: 0.0 | AB8: 0.0
A9: 4 | S9: 0.0 | T9: 0.0 | AA9: 0.0 | AB9: 0.0
A10: 5 | S10: 0.0 | T10: 0.0 | AA10: 0.0 | AB10: 0.0
A11: 6 | S11: 0.0 | T11: 0.0 | AA11: 0.0 | AB11: 0.0
A12: 7 | S12: 0.0 | T12: 0.0 | AA12: 0.0 | AB12: 0.0
A13: 8 | S13: 0.0 | T13: 0.0 | AA13: 0.0 | AB13: 0.0
A14: 9 | S14: 0.0 | T14: 0.0 | AA14: 0.0 | AB14: 0.0
A15: 10 | S15: 0.0 | T15: 0.0 | AA15: 0.0 | AB15: 0.0
A16: 11 | S16: 0.0 | T16: 0.0 | AA16: 0.0 | AB16: 0.0
A17: 12 | S17: 0.0 | T17: 0.0 | AA17: 0.0 | AB17: 0.0
A18: 13 | S18: 0.0 | T18: 0.0 | AA18: 0.0 | AB18: 0.0
A19: 14 | S19: 0.0 | T19: 0.0 | AA19: 0.0 | AB19: 0.0
A20: 15 | S20: 0.0 | T20: 0.0 | AA20: 0.0 | AB20: 0.0
A21: 16 | S21: 0.0 | T21: 0.0 | AA21: 0.0 | AB21: 0.0
A22: 17 | S22: 0.0 | T22: 0.0 | AA22: 0.0 | AB22: 0.0
A23: 18 | S23: 0.0 | T23: 0.0 | AA23: 0.0 | AB23: 0.0
A24: 19 | S24: 0.0 | T24: 0.0 | AA24: 0.0 | AB24: 0.0
A25: 20 | S25: 0.0 | T25: 0.0 | AA25: 0.0 | AB25: 0.0
A26: 21 | S26: 0.0 | T26: 0.0 | AA26: 0.0 | AB26: 0.0
A27: 22 | S27: 0.0 | T27: 0.0 | AA27: 0.0 | AB27: 0.0
A28: 23 | S28: 0.0 | T28: 0.0 | AA28: 0.0 | AB28: 0.0
A29: 24 | S29: 0.0 | T29: 0.0 | AA29: 0.0 | AB29: 0.0
B30: среднее значение: | C30: =(C6+C7+C8+C9+C10+C11+C12+C13+C14+C15+C16+C17+C18+C19+C20+C21+C22+C23+C24+C25+C26+C27+C28+C29)/COUNTA($B$6:$B$29) -> 1.7 | D30: 2.3 | E30: 1.3 | F30: 2.0 | G30: 1.3 | H30: 2.0 | I30: 1.3 | J30: 2.0 | K30: 1.7 | L30: 2.3 | M30: 1.7 | N30: 2.3 | O30: 1.3 | P30: 2.3 | Q30: 1.7 | R30: 2.7 | S30: 1.5 | T30: 2.3 | U30: =(U6+U7+U8+U9+U10+U11+U12+U13+U14+U15+U16+U17+U18+U19+U20+U21+U22+U23+U24+U25+U26+U27+U28+U29)/COUNTA($B$6:$B$29) -> 1.7 | V30: 2.3 | W30: =(W6+W7+W8+W9+W10+W11+W12+W13+W14+W15+W16+W17+W18+W19+W20+W21+W22+W23+W24+W25+W26+W27+W28+W29)/COUNTA($B$6:$B$29) -> 1.7 | X30: 2.3 | Y30: =(Y6+Y7+Y8+Y9+Y10+Y11+Y12+Y13+Y14+Y15+Y16+Y17+Y18+Y19+Y20+Y21+Y22+Y23+Y24+Y25+Y26+Y27+Y28+Y29)/COUNTA($B$6:$B$29) -> 1.7 | Z30: =(Z6+Z7+Z8+Z9+Z10+Z11+Z12+Z13+Z14+Z15+Z16+Z17+Z18+Z19+Z20+Z21+Z22+Z23+Z24+Z25+Z26+Z27+Z28+Z29)/COUNTA($B$6:$B$29) -> 2.3 | AA30: 1.7 | AB30: 2.3
B32: начало года
C33: всего | D33: норма | E33: ниже нормы | F33: низкий
B34: количество детей | C34: =COUNTA($B$6:$B$29) -> 3 | D34: =COUNTIF(S6:S29,">=3,8") -> 0 | E34: =COUNTIFS(S6:S29,"<3,7",S6:S29,">=2,3") -> 1 | F34: =COUNTIFS(S6:S29,"<2,2",S6:S29,">0") -> 1
D35: =COUNTIF(AA6:AA29,">=3,8") -> 0 | E35: =COUNTIFS(AA6:AA29,"<3,7",AA6:AA29,">=2,3") -> 1 | F35: =COUNTIFS(AA6:AA29,"<2,2",AA6:AA29,">0") -> 1
B36: % | C36: 100 | D36: =D34*C36/C34 -> 0 | E36: =E34*C36/C34 -> 33.3 | F36: =F34*C36/C34 -> 33.3 | G36: направление 1
D37: =D34*C36/C34 -> 0 | E37: =E34*C36/C34 -> 33.3 | F37: =F34*C36/C34 -> 33.3 | G37: направление2
B39: конец года
C40: всего | D40: норма | E40: ниже нормы | F40: низкий
B41: количество детей | C41: =COUNTA(B6:B29) -> 3 | D41: =COUNTIF(T6:T29,">=3,8") -> 0 | E41: =COUNTIFS(T6:T29,"<3,7",T6:T29,">=2,3") -> 2 | F41: =COUNTIFS(T6:T29,"<2,2",T6:T29,">0") -> 0
D42: =COUNTIF(AA13:AA36,">=3,8") -> 0 | E42: =COUNTIFS(AA13:AA36,"<3,7",AA13:AA36,">=2,3") -> 0 | F42: =COUNTIFS(AA13:AA36,"<2,2",AA13:AA36,">0") -> 1
B43: % | C43: 100 | D43: =D41*C43/C41 -> 0.0 | E43: =E41*C43/C41 -> 66.7 | F43: =F41*C43/C41 -> 0.0
D44: =D41*C43/C41 -> 0 | E44: =E41*C43/C41 -> 66.7 | F44: =F41*C43/C41 -> 0.0

Sheet ИТОГ ФР
A1: Обобщение результатов педагогической диагностики по направлениям
C2: ОО «Физическое развитие»
B4: ОГЛАВЛЕНИЕ | C4: Основная гимнастика; подвижные и спортивные игры, спортивные упражнения | D4: Формирование основ здорового образа жизни | E4: Средний балл/уровень
C5: 1 | D5: 2 | E5: ср.ур.
B6: начало | C6: =ФР!S30 -> 1.50 | D6: =ФР!AA30 -> 1.67 | E6: =(C6+D6)/2 -> 1.58
B7: конец | C7: =ФР!T30 -> 2.25 | D7: =ФР!AB30 -> 2.33 | E7: =(C7+D7)/2 -> 2.29
A26: ВЫВОДЫ:
A27: Начало учебного года:
A35: Конец учебного года:

Sheet ИТОГОВАЯ ПО ОО
B1: Обобщение результатов педагогической диагностики по всем образовательным областям
B2: на 202__/2___ учебный год
B4: ОГЛАВЛЕНИЕ | C4: Социально-­коммуникативное развитие | D4: Познавательное развитие | E4: Речевое развитие | F4: Художественно­эстетическое развитие | G4: Физическое развитие | H4: Средний балл/уровень
C5: СК | D5: ПР | E5: РР | F5: ХЭР | G5: ФР | H5: ср.ур.
B6: начало | C6: ='СК-1'!W29 -> 0.70 | D6: ='ПР-3'!N35 -> 1.45 | E6: ='ИТОГ РР'!G6 -> 1.23 | F6: ='ИТОГ ХЭ'!G6 -> 2.29 | G6: ='ИТОГ ФР'!$E$6 -> 1.58 | H6: =(C6+D6+E6+F6+G6)/5 -> 1.45
B7: конец | C7: ='СК-1'!X29 -> 1.03 | D7: ='ПР-3'!N36 -> 2.00 | E7: ='ИТОГ РР'!G7 -> 1.53 | F7: ='ИТОГ ХЭ'!G7 -> 3.01 | G7: ='ИТОГ ФР'!$E$7 -> 2.29 | H7: =(C7+D7+E7+F7+G7)/5 -> 1.97
B28: Основные выводы по результатам педагогической диагностики
A30: Педагогический процесс организован на ___________________________ уровне.
A31: Следует обратить внимание на трудности реализации образовательной(-ых) области(-ей) «_________ развитие» в следующих аспектах:
A32: 1.
A36: 2.
A40: 3.
A44: В индивидуальной помощи нуждаются следующие дети:
A45: 1. «Речевое развитие»:
A53: 2. «Познавательное развитие»:
A64: 3. «Социально-коммуникативное развитие»:
A75: 4. «Художественно-эстетическое развитие»:
A86: 5. «Физическое развитие»:
